fUSD/lending_fUSD_20250326
["ID","MTS","AMOUNT","RATE_DAILY","PERIOD"]
[356714682,1743012634132,-151.0,0.00019791,2]
[356714683,1743012634142,-3017.725345,0.0001987,2]
[356714684,1743012634151,-153.918289,0.0001987,2]
[356714685,1743012634160,-151.0,0.0001987,2]
[356714686,1743012634171,-151.0,0.0001987,2]
[356714687,1743012634181,-151.0,0.0001987,2]
[356714688,1743012634190,-151.0,0.0001987,2]
[356714689,1743012634200,-158.681837,0.0001987,2]
[356714690,1743012634209,-158.681837,0.0001987,2]
[356714691,1743012634219,-151.0,0.0001987,2]
[356714692,1743012634228,-151.0,0.0001987,2]
[356714693,1743012634239,-151.0,0.0001987,2]
[356714694,1743012634252,-151.0,0.0001987,2]
[356714695,1743012634261,-151.0,0.0001987,2]
[356714696,1743012634271,-153.3963527,0.000199,3]
[356714697,1743012634281,-223.210476,0.000199,2]
[356714698,1743012634291,-151.0,0.000199,2]
[356714699,1743012634300,-151.0,0.000199,2]
[356714700,1743012634309,-151.0,0.000199,2]
[356714701,1743012634321,-151.0,0.000199,2]
[356714702,1743012634331,-151.0,0.000199,2]
[356714703,1743012634341,-151.0,0.000199,2]
[356714704,1743012634351,-151.0,0.000199,2]
[356714705,1743012634361,-151.0,0.000199,2]
[356714706,1743012634371,-154.998951,0.000199,2]
[356714707,1743012634380,-1163.7720734,0.0002,4]
[356714708,1743012634390,-17554.95753976,0.0002,14]
[356714709,1743012634400,-151.0,0.0002,2]
[356714710,1743012634410,-151.0,0.0002,2]
[356714711,1743012634420,-151.0,0.0002,2]
[356714712,1743012634429,-151.0,0.0002,2]
[356714713,1743012634439,-278.021766,0.0002,2]
[356714714,1743012634448,-151.0,0.0002,2]
[356714715,1743012634458,-225.568437,0.0002,2]
[356714716,1743012634467,-152.140307,0.0002,2]
[356714717,1743012634477,-158.812172,0.0002,2]
[356714718,1743012634486,-160.65,0.00020036,2]
[356714719,1743012634498,-22396.21291669,0.00020046,2]
[356714720,1743012634509,-1000.0,0.00020204,2]
[356714721,1743012634519,-161.78,0.00020548,2]
[356714722,1743012634529,-200.0,0.000206,2]
[356714723,1743012634539,-3622.58669078,0.00020679,2]
[356714724,1743012634550,-184.92,0.00020773,2]
[356714725,1743012634561,-962.06,0.00021036,2]
[356714726,1743012634571,-162.36518174,0.00021194,2]
[356714727,1743012634581,-1152.0,0.0002152,2]
[356714728,1743012634592,-350.0,0.00021633,3]
[356714729,1743012634602,-168.18,0.00021646,2]
[356714730,1743012634612,-500.67289536,0.00021789,2]
[356714731,1743012634622,-242.032586,0.00021864,2]
[356714732,1743012634632,-22396.21291669,0.00021864,2]
[356714733,1743012634641,-150.0,0.00021917,2]
[356714734,1743012634651,-2462.44,0.00021932,2]
[356714735,1743012634661,-158.39,0.00022096,2]
[356714736,1743012634671,-1000.0,0.00022224,2]
[356714737,1743012634681,-152.45303,0.00022522,7]
[356714738,1743012634691,-151.0,0.00022522,7]
[356714739,1743012634700,-151.0,0.00022522,7]
[356714740,1743012634711,-151.0,0.00022522,7]
[356714741,1743012634721,-227.002589,0.00022522,7]
[356714742,1743012634731,-1593.379539,0.00022522,7]
[356714743,1743012634741,-227.002589,0.00022522,7]
[356714744,1743012634751,-1593.379539,0.00022522,7]
[356714745,1743012634760,-3622.58669078,0.00022604,2]
[356714746,1743012634770,-184.92,0.00022661,2]
[356714747,1743012634780,-151.138485,0.00022716,7]
[356714748,1743012634790,-151.0,0.00022748,7]
[356714749,1743012634800,-158.681837,0.00022748,7]
[356714750,1743012634810,-158.681837,0.00022748,7]
[356714751,1743012634820,-151.0,0.00022748,7]
[356714752,1743012634830,-151.0,0.00022748,7]
[356714753,1743012634841,-151.0,0.00022748,7]
[356714754,1743012634851,-189.654581,0.00022748,7]
[356714755,1743012634861,-151.0,0.00022791,7]
[356714756,1743012634872,-151.0,0.00022791,7]
[356714757,1743012634881,-151.0,0.00022791,7]
[356714758,1743012634891,-251.664624,0.00022791,7]
[356714759,1743012634901,-151.0,0.00022791,7]
[356714760,1743012634911,-202.113201,0.00022791,7]
[356714761,1743012634921,-151.0,0.00022791,7]
[356714762,1743012634931,-151.0,0.00022791,7]
[356714763,1743012634940,-151.0,0.00022791,7]
[356714764,1743012634950,-151.807273,0.00022791,7]
[356714765,1743012634960,-151.0,0.00022791,7]
[356714766,1743012634971,-151.0,0.00022791,7]
[356714767,1743012634980,-151.0,0.00022791,7]
[356714768,1743012634990,-170.690914,0.00022791,7]
[356714769,1743012635001,-170.690914,0.00022791,7]
[356714770,1743012635011,-151.0,0.00022791,7]
[356714771,1743012635020,-151.055202,0.00022791,7]
[356714772,1743012635031,-151.0,0.00022791,7]
[356714773,1743012635041,-151.0,0.00022791,7]
[356714774,1743012635051,-151.0,0.00022791,7]
[356714775,1743012635061,-151.0,0.00022791,7]
[356714776,1743012635072,-150.0,0.00022791,2]
[356714777,1743012635082,-150.0,0.00022791,2]
[356714778,1743012635092,-642.0,0.00022791,2]
[356714779,1743012635103,-2037.0,0.00022791,2]
[356714780,1743012635112,-1421.0,0.00022791,2]
[356714781,1743012635122,-372.159,0.00022791,2]
[356714782,1743012635132,-788.0,0.00022791,2]
[356714783,1743012635143,-1273.0,0.00022791,2]
[356714784,1743012635153,-1431.0,0.00022791,2]
[356714785,1743012635163,-4087.0,0.00022791,2]
[356714786,1743012635172,-907.0,0.00022791,2]
[356714787,1743012635182,-542.0,0.00022791,2]
[356714788,1743012635193,-3943.0,0.00022791,2]
[356714789,1743012635203,-151.0,0.00022791,2]
[356714790,1743012635213,-1093.0,0.000228,2]
[356714791,1743012635223,-350.0,0.00022949,3]
[356714792,1743012635234,-200.0,0.00023,2]
[356714793,1743012635250,-152.242403,0.00023003,7]
[356714794,1743012635260,-151.0,0.00023003,7]
[356714795,1743012635271,-1897.0,0.000232,2]
[356714796,1743012635280,-150.0,0.00023287,2]
[356714797,1743012635291,-962.06,0.000233,2]
[356714798,1743012635301,-6821.81,0.00023368,2]
[356714799,1743012635311,-717.41,0.00023368,2]
[356714800,1743012635322,-5683.7,0.00023368,2]
[356714801,1743012635333,-554.0,0.00023552,2]
[356714802,1743012635343,-911.23132847,0.0002361,7]
[356714803,1743012635353,-151.0,0.0002361,7]
[356714804,1743012635363,-22396.21291669,0.00023683,2]
[356714805,1743012635373,-175.56,0.00023836,2]
[356714806,1743012635383,-160.65,0.00024074,2]
[356714807,1743012635393,-2500.0,0.00024084,3]
[356714808,1743012635402,-2500.0,0.00024084,3]
[356714809,1743012635412,-151.0,0.00024174,7]
[356714810,1743012635421,-227.002589,0.00024174,7]
[356714811,1743012635431,-1593.379539,0.00024174,7]
[356714812,1743012635441,-227.002589,0.00024174,7]
[356714813,1743012635451,-1593.379539,0.00024174,7]
[356714814,1743012635461,-19999.99,0.00024174,2]
[356714815,1743012635471,-151.0,0.00024244,7]
[356714816,1743012635480,-151.0,0.00024244,7]
[356714817,1743012635489,-151.0,0.00024244,7]
[356714818,1743012635500,-1000.0,0.00024244,2]
[356714819,1743012635510,-168.18,0.00024352,2]
[356714820,1743012635520,-151.0,0.000244,7]
[356714821,1743012635530,-3622.58669078,0.00024529,2]
[356714822,1743012635539,-150.0,0.00024657,2]
[356714823,1743012635550,-151.0,0.00024699,7]
[356714824,1743012635561,-450.06,0.00024712,30]
[356714825,1743012635571,-388.53787736,0.00024773,2]
[356714826,1743012635581,-500.0,0.00024773,2]
[356714827,1743012635591,-500.0,0.00024773,2]
[356714828,1743012635601,-712.47297784,0.0002479,2]
[356714829,1743012635611,-160.65,0.0002479,2]
[356714830,1743012635621,-160.65,0.0002479,2]
[356714831,1743012635630,-154.609331,0.000248,7]
[356714832,1743012635639,-151.0,0.000248,7]
[356714833,1743012635649,-151.0,0.000248,7]
[356714834,1743012635658,-189.920121,0.000248,7]
[356714835,1743012635668,-158.681837,0.000248,7]
[356714836,1743012635678,-158.681837,0.000248,7]
[356714837,1743012635688,-296.131548,0.000248,7]
[356714838,1743012635698,-151.0,0.000248,7]
[356714839,1743012635707,-151.0,0.000248,7]
[356714840,1743012635717,-151.0,0.000248,7]
[356714841,1743012635726,-151.0,0.000248,7]
[356714842,1743012635736,-151.0,0.000248,7]
[356714843,1743012635746,-151.0,0.000248,7]
[356714844,1743012635755,-170.690914,0.000248,7]
[356714845,1743012635765,-170.690914,0.000248,7]
[356714846,1743012635774,-151.0,0.000248,7]
[356714847,1743012635784,-151.0,0.000248,7]
[356714848,1743012635794,-151.0,0.000248,7]
[356714849,1743012635804,-151.0,0.000248,7]
[356714850,1743012635814,-151.0,0.000248,7]
[356714851,1743012635974,-196978.092264,0.000248,3]
[356714852,1743012635986,-151.0,0.000248,7]
[356714853,1743012635998,-227.002589,0.000248,7]
[356714854,1743012636008,-1593.379539,0.000248,7]
[356714855,1743012636018,-227.002589,0.000248,7]
[356714856,1743012636029,-1593.379539,0.000248,7]
[356714857,1743012636038,-269.81651,0.000248,7]
[356714858,1743012636048,-16414.841022,0.0002488,3]
[356714859,1743012636058,-160.65,0.0002488,2]
[356714860,1743012636067,-151.0,0.0002489,7]
[356714861,1743012636076,-151.0,0.0002489,7]
[356714862,1743012636085,-151.0,0.0002489,7]
[356714863,1743012636095,-151.0,0.0002489,7]
[356714864,1743012636104,-151.0,0.0002489,7]
[356714865,1743012636113,-170.690914,0.0002489,7]
[356714866,1743012636122,-170.690914,0.0002489,7]
[356714867,1743012636132,-151.0,0.0002489,7]
[356714868,1743012636141,-151.0,0.0002489,7]
[356714869,1743012636151,-151.0,0.0002489,7]
[356714870,1743012636160,-151.0,0.0002489,7]
[356714871,1743012636169,-16414.841022,0.0002489,3]
[356714872,1743012636178,-151.0,0.0002489,7]
[356714873,1743012636187,-227.002589,0.0002489,7]
[356714874,1743012636197,-1593.379539,0.0002489,7]
[356714875,1743012636207,-227.002589,0.0002489,7]
[356714876,1743012636217,-1593.379539,0.0002489,7]
[356714877,1743012636226,-160.65,0.0002489,2]
[356714878,1743012636235,-1188.77681201,0.000249,2]
[356714879,1743012636248,-158.681837,0.000249,7]
[356714880,1743012636257,-158.681837,0.000249,7]
[356714881,1743012636266,-251.703509,0.000249,7]
[356714882,1743012636276,-151.0,0.000249,7]
[356714883,1743012636286,-151.0,0.000249,7]
[356714884,1743012636296,-200.0,0.000249,9]
[356714885,1743012636306,-91664.387446,0.000249,3]
[356714886,1743012636316,-16414.841022,0.00024972,3]
[356714887,1743012636327,-151.0,0.0002498,7]
[356714888,1743012636337,-151.0,0.0002498,7]
[356714889,1743012636346,-250.0,0.00025,2]
[356714890,1743012636356,-15277.3979077,0.00025252,3]
[356714891,1743012636366,-256.03,0.00025262,2]
[356714892,1743012636375,-354.34,0.00025262,2]
[356714893,1743012636384,-280.0,0.000253,10]
[356714894,1743012636394,-262.472221,0.00025482,7]
[356714895,1743012636404,-151.0,0.00025482,7]
[356714896,1743012636414,-152.529607,0.00025482,7]
[356714897,1743012636423,-170.690914,0.00025482,7]
[356714898,1743012636432,-170.690914,0.00025482,7]
[356714899,1743012636442,-151.0,0.00025482,7]
[356714900,1743012636451,-151.0,0.00025482,7]
[356714901,1743012636460,-151.0,0.00025482,7]
[356714902,1743012636469,-151.0,0.00025482,7]
[356714903,1743012636479,-151.0,0.00025482,7]
[356714904,1743012636488,-227.002589,0.00025482,7]
[356714905,1743012636498,-1593.379539,0.00025482,7]
[356714906,1743012636507,-227.002589,0.00025482,7]
[356714907,1743012636516,-1593.379539,0.00025482,7]
[356714908,1743012636526,-158.681837,0.00025492,7]
[356714909,1743012636535,-158.681837,0.00025492,7]
[356714910,1743012636544,-22396.21291669,0.00025501,2]
[356714911,1743012636553,-300.12238937,0.00025559,2]
[356714912,1743012636563,-962.06,0.00025564,2]
[356714913,1743012636572,-160.65,0.00025603,2]
[356714914,1743012636582,-16414.841022,0.00025613,3]
[356714915,1743012636591,-15277.3979077,0.00025613,3]
[356714916,1743012636601,-177.652598,0.00025643,7]
[356714917,1743012636610,-151.0,0.00025643,7]
[356714918,1743012636619,-151.0,0.00025791,7]
[356714919,1743012636628,-182.16857897,0.00025791,7]
[356714920,1743012636637,-341.108,0.00025791,2]
[356714921,1743012636646,-1421.0,0.00025791,2]
[356714922,1743012636655,-786.0,0.00025791,2]
[356714923,1743012636664,-1273.0,0.00025791,2]
[356714924,1743012636673,-4087.0,0.00025791,2]
[356714925,1743012636682,-907.0,0.00025791,2]
[356714926,1743012636690,-542.0,0.00025791,2]
[356714927,1743012636699,-3943.0,0.00025791,2]
[356714928,1743012636708,-151.0,0.00025791,2]
[356714929,1743012636718,-500.0,0.000259,9]
[356714930,1743012636727,-150.0,0.00026027,2]
[356714931,1743012636736,-781.87,0.00026234,2]
[356714932,1743012636745,-781.87,0.00026234,2]
[356714933,1743012636754,-443.55,0.00026234,2]
[356714934,1743012636764,-781.87,0.00026234,2]
[356714935,1743012636773,-443.55,0.00026234,2]
[356714936,1743012636782,-1064.884,0.00026441,13]
[356714937,1743012636791,-3622.58669078,0.00026454,2]
[356714938,1743012636801,-151.0,0.00026454,7]
[356714939,1743012636811,-227.002589,0.00026454,7]
[356714940,1743012636821,-1593.379539,0.00026454,7]
[356714941,1743012636831,-227.002589,0.00026454,7]
[356714942,1743012636841,-1593.379539,0.00026454,7]
[356714943,1743012636850,-901.77208619,0.000265,2]
[356714944,1743012636860,-15277.3979077,0.00026535,3]
[356714945,1743012636871,-151.0,0.00026545,7]
[356714946,1743012636881,-151.0,0.00026545,7]
[356714947,1743012636890,-151.0,0.00026545,7]
[356714948,1743012636899,-158.681837,0.00026555,7]
[356714949,1743012636909,-158.681837,0.00026555,7]
[356714950,1743012636918,-16414.841022,0.00026565,3]
[356714951,1743012636928,-1996.3451754,0.00026575,4]
[356714952,1743012636938,-151.0,0.00026575,7]
[356714953,1743012636947,-162.36518174,0.00026845,2]
[356714954,1743012636956,-172.92,0.00026849,2]
[356714955,1743012636966,-336.67,0.00026849,2]
[356714956,1743012636976,-700.0,0.000269,9]
[356714957,1743012636986,-780.59630503,0.00027,7]
[356714958,1743012636996,-300.0,0.00027,2]
[356714959,1743012637005,-150.0,0.00027123,30]
[356714960,1743012637015,-267.224329,0.0002717,7]
[356714961,1743012637025,-170.690914,0.0002717,7]
[356714962,1743012637034,-170.690914,0.0002717,7]
[356714963,1743012637044,-898.58,0.0002718,2]
[356714964,1743012637054,-304.06,0.0002718,2]
[356714965,1743012637063,-308.82,0.0002718,2]
[356714966,1743012637073,-304.67,0.0002718,2]
[356714967,1743012637083,-15277.3979077,0.00027183,3]
[356714968,1743012637092,-150.0,0.00027192,2]
[356714969,1743012637102,-443.55,0.00027193,2]
[356714970,1743012637111,-443.55,0.00027193,2]
[356714971,1743012637121,-781.87,0.00027193,2]
[356714972,1743012637130,-443.55,0.00027193,2]
[356714973,1743012637140,-781.87,0.00027193,2]
[356714974,1743012637149,-887.1,0.00027193,2]
[356714975,1743012637158,-781.87,0.00027193,2]
[356714976,1743012637167,-443.55,0.00027193,2]
[356714977,1743012637176,-443.55,0.00027193,2]
[356714978,1743012637186,-781.87,0.00027193,2]
[356714979,1743012637195,-781.87,0.00027193,2]
[356714980,1743012637204,-781.87,0.00027193,2]
[356714981,1743012637214,-443.55,0.00027193,2]
[356714982,1743012637223,-443.55,0.00027193,2]
[356714983,1743012637233,-781.87,0.00027193,2]
[356714984,1743012637245,-443.55,0.00027193,2]
[356714985,1743012637255,-781.87,0.00027193,2]
[356714986,1743012637264,-781.87,0.00027193,2]
[356714987,1743012637274,-781.87,0.00027193,2]
[356714988,1743012637284,-781.87,0.00027193,2]
[356714989,1743012637294,-151.0,0.00027193,7]
[356714990,1743012637303,-150.0,0.0002726,30]
[356714991,1743012637312,-160.65,0.00027287,2]
[356714992,1743012637324,-16414.841022,0.00027297,3]
[356714993,1743012637334,-22396.21291669,0.0002732,2]
[356714994,1743012637343,-243.862154,0.0002732,7]
[356714995,1743012637353,-227.002589,0.0002732,7]
[356714996,1743012637363,-1593.379539,0.0002732,7]
[356714997,1743012637373,-227.002589,0.0002732,7]
[356714998,1743012637382,-1593.379539,0.0002732,7]
[356714999,1743012637392,-15277.3979077,0.00027346,3]
[356715000,1743012637402,-16414.841022,0.00027358,3]
[356715001,1743012637412,-160.65,0.00027358,2]
[356715002,1743012637422,-151.0,0.00027368,7]
[356715003,1743012637431,-151.0,0.00027368,7]
[356715004,1743012637441,-151.0,0.00027368,7]
[356715005,1743012637450,-16414.841022,0.00027368,3]
[356715006,1743012637460,-30554.7958153,0.00027368,3]
[356715007,1743012637469,-151.0,0.00027377,7]
[356715008,1743012637479,-158.681837,0.00027378,7]
[356715009,1743012637488,-158.681837,0.00027378,7]
[356715010,1743012637497,-151.0,0.00027378,7]
[356715011,1743012637507,-12480.1579347,0.00027378,2]
[356715012,1743012637516,-170.690914,0.00027378,7]
[356715013,1743012637526,-170.690914,0.00027378,7]
[356715014,1743012637535,-1032.274884,0.00027378,14]
[356715015,1743012637546,-151.0,0.00027378,7]
[356715016,1743012637555,-2636.0116754,0.00027378,2]
[356715017,1743012637565,-579.3419427,0.00027378,2]
[356715018,1743012637574,-49244.5230659,0.00027387,3]
[356715019,1743012637583,-128940.46627103,0.00027387,3]
[356715020,1743012637728,-630.312,0.00027387,3]
[356715021,1743012637740,-427.80000002,0.00027387,3]
[356715023,1743012638147,-1116.0,0.00019791,2]
[356715024,1743012638156,-545.6399997,0.00022791,2]
[356715025,1743012638201,-327.15518835,0.00022791,2]
[356715047,1743012640300,-243.20481195,0.00022791,2]
[356715048,1743012640309,-1051.60374352,0.00025791,2]
[356715049,1743012640323,-64.39625648,0.00025791,2]
[356715050,1743012640332,-2000.0,0.00027193,14]
[356715051,1743012640342,-2000.0,0.00027193,14]
[356715052,1743012640352,-2000.0,0.00027193,14]
[356715053,1743012640361,-2000.0,0.00027193,14]
[356715054,1743012640370,-1135.60374352,0.00027193,14]
[356715055,1743012640386,-864.39625648,0.00027193,14]
[356715056,1743012640396,-2000.0,0.00027193,14]
[356715057,1743012640405,-206.93214161,0.00027193,14]
[356715058,1743012640420,-285.81595013,0.00027193,14]
[356715059,1743012640512,-1507.25190826,0.00027193,14]
[356715060,1743012640522,-2000.0,0.00027193,14]
[356715061,1743012640531,-2000.0,0.00027193,14]
[356715062,1743012640540,-2000.0,0.00027193,14]
[356715063,1743012640550,-1081.35100853,0.00027193,14]
[356715064,1743012640562,-297.82867182,0.00027193,14]
[356715065,1743012640574,-360.0310739,0.00027193,14]
[356715066,1743012640621,-260.78924575,0.00027193,14]
[356715067,1743012640631,-2000.0,0.00027193,14]
[356715068,1743012640641,-2000.0,0.00027193,14]
[356715069,1743012640651,-13278.9916569,0.00027387,3]
[356715070,1743012640675,-1215.72589904,0.00027387,3]
[356715071,1743012640687,-1388.83144935,0.00027387,3]
[356715072,1743012640730,-68001.44343066,0.00027387,3]
[356715073,1743012640739,-158.681837,0.00027387,7]
[356715074,1743012640749,-151.0,0.00027387,7]
[356715075,1743012640758,-170427.38514692,0.00027397,2]
[356715076,1743012640775,-500.0,0.00027397,2]
[356715077,1743012640784,-500.0,0.00027397,2]
[356715079,1743012640793,-664.53,0.00027397,2]
[356715081,1743012640803,-500.0,0.00027397,2]
[356715083,1743012640812,-500.0,0.00027397,2]
[356715085,1743012640821,-500.0,0.00027397,2]
[356715087,1743012640830,-500.0,0.00027397,2]
[356715089,1743012640840,-500.0,0.00027397,2]
[356715091,1743012640849,-500.0,0.00027397,2]
[356715093,1743012640858,-500.0,0.00027397,2]
[356715095,1743012640867,-500.0,0.00027397,2]
[356715097,1743012640876,-500.0,0.00027397,2]
[356715099,1743012640885,-500.0,0.00027397,2]
[356715101,1743012640894,-500.0,0.00027397,2]
[356715103,1743012640903,-500.0,0.00027397,2]
[356715106,1743012640913,-500.0,0.00027397,2]
[356715108,1743012640922,-500.0,0.00027397,2]
[356715109,1743012640931,-500.0,0.00027397,2]
[356715110,1743012640941,-500.0,0.00027397,2]
[356715111,1743012640951,-648.49,0.00027397,2]
[356715112,1743012640961,-365.17026894,0.00027397,2]
[356715113,1743012640970,-500.0,0.00027397,2]
[356715114,1743012640980,-1359.87,0.00027397,2]
[356715115,1743012640989,-500.0,0.00027397,2]
[356715116,1743012640998,-582.98,0.00027397,2]
[356715117,1743012641007,-500.0,0.00027397,2]
[356715118,1743012641017,-500.0,0.00027397,2]
[356715119,1743012641026,-500.0,0.00027397,2]
[356715120,1743012641035,-281.19143984,0.00027397,2]
[356715121,1743012641044,-500.0,0.00027397,2]
[356715122,1743012641053,-1640.68,0.00027397,2]
[356715123,1743012641062,-5537.15,0.00027397,2]
[356715124,1743012641071,-501.90199984,0.00027397,2]
[356715125,1743012641080,-500.0,0.00027397,2]
[356715126,1743012641089,-500.0,0.00027397,2]
[356715127,1743012641098,-500.0,0.00027397,2]
[356715128,1743012641107,-500.0,0.00027397,2]
[356715129,1743012641116,-500.0,0.00027397,2]
[356715130,1743012641125,-1332.77,0.00027397,2]
[356715131,1743012641135,-500.0,0.00027397,2]
[356715132,1743012641144,-500.0,0.00027397,2]
[356715133,1743012641153,-500.0,0.00027397,2]
[356715134,1743012641162,-500.0,0.00027397,2]
[356715135,1743012641171,-500.0,0.00027397,2]
[356715136,1743012641180,-500.0,0.00027397,2]
[356715137,1743012641189,-150.0,0.00027397,30]
[356715138,1743012641198,-500.0,0.00027397,2]
[356715139,1743012641209,-500.0,0.00027397,2]
[356715140,1743012641219,-500.0,0.00027397,2]
[356715141,1743012641229,-500.0,0.00027397,2]
[356715142,1743012641238,-500.0,0.00027397,2]
[356715143,1743012641249,-500.0,0.00027397,2]
[356715144,1743012641258,-500.0,0.00027397,2]
[356715145,1743012641268,-500.0,0.00027397,2]
[356715146,1743012641277,-6555.7,0.00027397,2]
[356715147,1743012641287,-500.0,0.00027397,2]
[356715148,1743012641296,-500.0,0.00027397,2]
[356715149,1743012641305,-197.29746871,0.00027397,2]
[356715150,1743012641315,-2096.69,0.00027397,2]
[356715151,1743012641325,-500.0,0.00027397,2]
[356715152,1743012641334,-500.0,0.00027397,2]
[356715153,1743012641343,-4201.48,0.00027397,2]
[356715154,1743012641352,-490.8948228,0.00027397,2]
[356715155,1743012641362,-500.0,0.00027397,2]
[356715156,1743012641371,-760.06,0.00027397,2]
[356715157,1743012641380,-500.0,0.00027397,2]
[356715158,1743012641390,-547.14725819,0.00027397,2]
[356715159,1743012641399,-500.0,0.00027397,2]
[356715160,1743012641408,-1032.3,0.00027397,2]
[356715161,1743012641417,-601.73313827,0.00027397,2]
[356715162,1743012641427,-533.4738578,0.00027397,2]
[356715163,1743012641436,-504.63437325,0.00027397,2]
[356715164,1743012641446,-362.16535685,0.00027397,2]
[356715165,1743012641455,-500.0,0.00027397,2]
[356715166,1743012641464,-553.31907497,0.00027397,2]
[356715167,1743012641474,-1073.59,0.00027397,2]
[356715168,1743012641483,-500.0,0.00027397,2]
[356715169,1743012641492,-531.2680175,0.00027397,2]
[356715170,1743012641502,-473.02973654,0.00027397,2]
[356715171,1743012641512,-536.57117214,0.00027397,2]
[356715172,1743012641521,-500.0,0.00027397,2]
[356715173,1743012641530,-500.0,0.00027397,2]
[356715174,1743012641539,-500.0,0.00027397,2]
[356715175,1743012641550,-555.09001758,0.00027397,2]
[356715176,1743012641559,-396.38732683,0.00027397,2]
[356715177,1743012641569,-328.68779323,0.00027397,2]
[356715178,1743012641578,-500.0,0.00027397,2]
[356715179,1743012641587,-500.0,0.00027397,2]
[356715180,1743012641596,-676.11,0.00027397,2]
[356715181,1743012641606,-500.0,0.00027397,2]
[356715182,1743012641615,-500.0,0.00027397,2]
[356715183,1743012641625,-1514.73,0.00027397,2]
[356715184,1743012641634,-433.63229994,0.00027397,2]
[356715185,1743012641644,-578.24,0.00027397,2]
[356715186,1743012641653,-500.0,0.00027397,2]
[356715187,1743012641663,-620.10432644,0.00027397,2]
[356715188,1743012641672,-601.17891175,0.00027397,2]
[356715189,1743012641681,-580.96,0.00027397,2]
[356715190,1743012641691,-648.74220009,0.00027397,2]
[356715191,1743012641701,-589.59585416,0.00027397,2]
[356715192,1743012641710,-500.0,0.00027397,2]
[356715193,1743012641719,-500.0,0.00027397,2]
[356715194,1743012641728,-529.70948971,0.00027397,2]
[356715195,1743012641738,-171.61963047,0.00027397,2]
[356715196,1743012641748,-500.0,0.00027397,2]
[356715197,1743012641758,-500.0,0.00027397,2]
[356715198,1743012641768,-500.0,0.00027397,2]
[356715199,1743012641778,-500.0,0.00027397,2]
[356715200,1743012641787,-500.0,0.00027397,2]
[356715201,1743012641797,-259.49722622,0.00027397,2]
[356715202,1743012641807,-2344.78,0.00027397,2]
[356715203,1743012641816,-500.0,0.00027397,2]
[356715204,1743012641827,-407.14210123,0.00027397,2]
[356715205,1743012641836,-500.0,0.00027397,2]
[356715206,1743012641988,-500.0,0.00027397,2]
[356715207,1743012641999,-500.0,0.00027397,2]
[356715208,1743012642009,-500.0,0.00027397,2]
[356715209,1743012642019,-924.17,0.00027397,2]
[356715210,1743012642028,-500.0,0.00027397,2]
[356715211,1743012642038,-500.0,0.00027397,2]
[356715213,1743012642048,-500.0,0.00027397,2]
[356715214,1743012642057,-500.0,0.00027397,2]
[356715215,1743012642067,-8110.68,0.00027397,2]
[356715216,1743012642076,-757.14,0.00027397,2]
[356715217,1743012642086,-500.0,0.00027397,2]
[356715218,1743012642096,-500.0,0.00027397,2]
[356715219,1743012642105,-515.60923691,0.00027397,2]
[356715220,1743012642115,-571.74738645,0.00027397,2]